Cogmind - Beta 14 *** ADVENTURER MODE // 2024.09.11 @ 17:54:12 Player: 7604 Result: Destroyed by Z-Imprinter with Zionite Laser-M Performance ------------- Evolutions (1) 500 Regions Visited (5) 1000 Robots Destroyed (53) 265 Value Destroyed (1244) 1244 Prototype IDs (1) 20 Alien Tech Used (0) 0 Bonus (0) 0 TOTAL SCORE: 3029 Bonus ------- None Cogmind --------- Core Integrity 0/400 Matter 300/300 Energy 100/100 System Corruption 0% Temperature Cool (18) Movement Walking (190) Ox1 Location -7/Deep Caves Parts ------- > --- POWER (1) -------- (None) > --- PROPULSION (4) --- Improved Aluminum Leg > --- UTILITY (2) ------ Large Storage Unit Structural Scanner > --- WEAPON (2) ------- Particle Gun > --- INVENTORY (15) --- Ion Engine Heat Sink High-capacity Storage Unit Sensor Array Signal Interpreter Light Armor Plating Hardened Light Armor Plating Hacking Drone Bay Bomb Factory No. 2 Mini Grenade Launcher RU-N14's Throwing Claymores (4) Flail Self-destruct Interrupter (50) Peak State ------------ > --- POWER ------------ Improved Ion Engine > --- PROPULSION ------- Aluminum Leg Aluminum Leg Aluminum Leg Improved Aluminum Leg > --- UTILITY ---------- Large Storage Unit Structural Scanner > --- WEAPON ----------- Particle Gun RU-N14's Throwing Claymores > --- INVENTORY -------- Ion Engine Aluminum Leg Heat Sink High-capacity Storage Unit Sensor Array Signal Interpreter Terrain Scan Processor Seismic Detector ECM Suite Light Armor Plating Hardened Light Armor Plating Hacking Drone Bay Mini Grenade Launcher Flail Self-destruct Interrupter [Rating: 21] Favorites ----------- Power Light Ion Engine Engine Light Ion Engine Power Core Light Nuclear Core Propulsion Aluminum Leg Treads Light Treads Leg Aluminum Leg Utility Large Storage Unit Device Improved Terrain Scanner Storage Large Storage Unit Weapon Small Laser Energy Gun Small Laser Ballistic Gun Light Assault Rifle Launcher Mini Grenade Launcher Special Weapon Mining Laser Build | -11 -10 -9 -9 -7 -7 ------- Run | Yrd Mat Mat Min Zio Dee Slots Evolved 2 | . . 2 . . . Power . | . . . . . . Propulsion 2 | . . 2 . . . Utility . | . . . . . . Weapon . | . . . . . . Parts Attached 52 | 8 5 19 16 3 1 Power 6 | 1 1 1 3 . . Engine 5 | 1 1 . 3 . . Core 1 | . . 1 . . . Reactor . | . . . . . . Propulsion 20 | 2 3 6 8 . 1 Treads 4 | . . 4 . . . Leg 16 | 2 3 2 8 . 1 Wheel . | . . . . . . Hover . | . . . . . . Flight . | . . . . . . Utility 8 | 3 1 3 1 . . Device 3 | 2 . . 1 . . Storage 5 | 1 1 3 . . . Processor . | . . . . . . Hackware . | . . . . . . Protection . | . . . . . . Artifact . | . . . . . . Weapon 18 | 2 . 9 4 3 . Energy Gun 10 | 2 . 4 3 1 . Energy Cannon . | . . . . . . Ballistic Gun 2 | . . 2 . . . Ballistic Cannon . | . . . . . . Launcher 3 | . . 2 1 . . Special Weapon 3 | . . 1 . 2 . Impact Weapon . | . . . . . . Slashing Weapon . | . . . . . . Piercing Weapon . | . . . . . . Special Melee Weapon . | . . . . . . Unidentified Prototypes 1 | . . . . 1 . Parts Lost 18 | . 3 7 2 . 6 Power 4 | . 1 1 1 . 1 Propulsion 8 | . . 4 . . 4 Utility 1 | . . . 1 . . Weapon 5 | . 2 2 . . 1 Highest Loss Streak 6 | . 2 4 1 . 6 To Critical Strikes . | . . . . . . Average Slot Usage (%) 92 | . 97 82 94 100 96 Engine 9 | . 14 5 9 11 9 Core 1 | . . 5 . . . Treads 9 | . . 27 2 . . Leg 26 | . 28 4 40 44 41 Device 11 | . 14 11 7 11 11 Storage 11 | . 14 11 11 11 11 Energy Gun 17 | . 25 8 17 21 22 Ballistic Gun 3 | . . 7 1 . . Peak Build Rating 21 | 9 10 15 15 21 17 Average Rating 10 | 6 9 11 13 16 16 On Entrance 10 | . 9 8 15 14 17 Naked Turns . | . . . . . . Heaviest Build 39 | 12 18 30 34 39 34 Greatest Support 80 | 20 20 80 80 43 43 Greatest Overweight (x) 9 | 3 . 9 2 . 2 Average Overweight (x) . | . . . . . . Largest Inventory Capacity 20 | 8 10 20 15 15 15 Average Capacity 11 | 7 9 14 15 15 15 Most Carried 15 | 4 10 14 15 15 15 Average Carried 8 | 2 7 10 12 14 14 Final Capacity 15 | 8 10 15 15 15 15 Final Carried 15 | 4 10 14 15 15 14 Class Distribution -------------------- 50% | Scavenger-Mutant 49% | Mutant Dominant Class ---------------- Mutant | -10/Materials Scavenger-Mutant | -9/Materials Scavenger-Mutant | -9/Mines Scavenger-Mutant | -7/Zion Scavenger-Mutant | -7/Deep Caves Resources | -11 -10 -9 -9 -7 -7 ----------- Run | Yrd Mat Mat Min Zio Dee Matter Collected 785 | 280 50 249 166 40 . Remotely . | . . . . . . Salvage Created 1420 | 57 423 578 362 . . Parts 111 | 8 33 46 24 . . Haulers Intercepted . | . . . . . . Recyclers Shooed . | . . . . . . Parts Field Recycled . | . . . . . . Retrieved Matter . | . . . . . . Parts Self-Destructed 1 | . . . . 1 . Prevented . | . . . . . . Kills | -11 -10 -9 -9 -7 -7 ------- Run | Yrd Mat Mat Min Zio Dee Combat Hostiles Destroyed 43 | . 11 19 13 . . Melee 1 | . 1 . . . . Guns 31 | . 10 9 12 . . Cannons 5 | . . 5 . . . AOE 6 | . . 5 1 . . Classes Destroyed 8 | 1 4 2 . . 1 Worker 1 | . . 1 . . . Builder 3 | . 1 1 1 . . Tunneler 2 | 2 . . . . . Watcher 4 | . 3 1 . . . Swarmer 17 | . 6 7 4 . . Grunt 22 | . 5 8 9 . . Sentry 4 | . . 4 . . . Z-Technician 5 | . . . . . 5 Best Kill Streak 8 | 1 8 6 4 . 5 Combat Bots Only 6 | . 5 6 4 . . Max Kills in Single Turn 5 | 1 2 4 1 . 5 Gunslinging 1 | . 1 . . . . Exploded 4 | . . 4 1 . . Melee 1 | . 1 . . . . Uniques/NPCs Destroyed . | . . . . . . Combat | -11 -10 -9 -9 -7 -7 -------- Run | Yrd Mat Mat Min Zio Dee Hostile Shots Fired 293 | . 85 138 50 . 20 Missed 82 | . 21 39 15 . 7 Damage Taken 2516 | . 561 858 399 . 698 Core 520 | . 106 169 35 . 210 Absorbed by Shields . | . . . . . . Ignored by Resistances 735 | . 172 264 120 . 179 Core Remaining (%) 78 | 100 57 . . . . Volleys Fired 140 | 2 40 69 28 . 1 Largest 2 | 2 2 2 2 . 2 Hottest 130 | 90 90 123 130 . 130 Shots Fired 228 | 4 73 99 50 . 2 Gun 217 | 4 73 90 48 . 2 Cannon . | . . . . . . Launcher 4 | . . 2 2 . . Special 7 | . . 7 . . . Kinetic 51 | . . 46 5 . . Thermal 173 | 4 73 51 43 . 2 Explosive 4 | . . 2 2 . . Electromagnetic . | . . . . . . Robot Hit Streak 19 | 1 18 19 11 . 4 Robot Miss Streak 4 | 1 3 2 4 . 2 Penetration Max . | . . . . . . Secondary Targets 6 | . 4 . 2 . . Max Gunslinging Chain 1 | . 1 . 1 . . Shots Hit Robots 171 | 2 54 78 35 . 2 Core Hits 109 | 2 23 37 43 . 4 Critical Kills . | . . . . . . Critical Parts Destroyed . | . . . . . . Critical Strikes 3 | . 3 . . . . Burn 3 | . 3 . . . . Melee Attacks . | . . . . . . Impact . | . . . . . . Slashing . | . . . . . . Piercing . | . . . . . . Sneak Attacks . | . . . . . . Combat Hostiles . | . . . . . . Follow-up Attacks . | . . . . . . Damage Inflicted 4681 | 24 673 1316 581 . 2087 Guns 1990 | 24 650 783 506 . 27 Cannons . | . . . . . . Explosions 2466 | . . 340 66 . 2060 Melee . | . . . . . . Ramming 57 | . 23 25 9 . . Kinetic 418 | . . 382 36 . . Thermal 3800 | 24 650 569 470 . 2087 Explosive 406 | . . 340 66 . . Electromagnetic . | . . . . . . Impact . | . . . . . . Slashing . | . . . . . . Piercing . | . . . . . . Highest Corruption 2 | . . 2 2 2 . Average Corruption 1 | . . 1 2 2 . Corruption Purged . | . . . . . . Corruption Blocked . | . . . . . . Effects 11 | . . 9 2 . . Message Errors 3 | . . 2 1 . . Matter Fused 2 | . . 2 . . . Heat Flow Errors 1 | . . 1 . . . Energy Discharges 1 | . . 1 . . . Data Loss (minor) 3 | . . 2 1 . . Misfires 1 | . . 1 . . . Overload Shots . | . . . . . . Overflow Damage 619 | . . 4 . . 615 Projectiles 4 | . . 4 . . . Explosions 615 | . . . . . 615 Melee . | . . . . . . Knockbacks . | . . . . . . Impact . | . . . . . . Kinetic . | . . . . . . Secondary . | . . . . . . Self-Inflicted Damage 414 | . . . 62 . 352 Shots 3 | . . . 2 . 1 Rammed 3 | . . 3 . . . Targets Rammed 9 | . 3 3 3 . . Kicked 6 | . 3 . 3 . . Crushed . | . . . . . . Highest Temperature 363 | 30 312 273 363 . 57 Average Temperature 83 | 17 108 33 109 . 30 Received Heat Transfer 1110 | . 339 411 243 . 117 Effects 3 | . 3 . . . . Energy Bleed 1 | . 1 . . . . Interference 2 | . 2 . . . . Siege Activations . | . . . . . . Robots Corrupted . | . . . . . . Combat Hostiles . | . . . . . . Parts Fried . | . . . . . . Impact Corruptions . | . . . . . . Robots Melted . | . . . . . . Combat Hostiles . | . . . . . . Parts Melted 1 | . 1 . . . . Heat Transferred 4052 | 62 1969 1250 719 . 52 Parts Sabotaged . | . . . . . . Parts Stolen . | . . . . . . Parts Stripped . | . . . . . . Power Chain Reactions . | . . . . . . Alert | -11 -10 -9 -9 -7 -7 ------- Run | Yrd Mat Mat Min Zio Dee Peak Influence 357 | 5 295 357 317 . . Initial 51 | . . 41 51 . . Average 97 | 1 135 201 177 . . Maximum Alert Level 1 | . 1 1 1 . . Low Security (%) 79 | 100 81 57 53 . . Level 1 20 | . 18 42 46 . . Level 2 . | . . . . . . Level 3 . | . . . . . . Level 4 . | . . . . . . Level 5 . | . . . . . . High Security . | . . . . . . Max Security . | . . . . . . Squads Dispatched 2 | . 1 1 . . . Investigation 1 | . 1 . . . . Extermination . | . . . . . . Reinforcement 1 | . . 1 . . . Assault . | . . . . . . Garrison . | . . . . . . Intercept . | . . . . . . Searches Triggered . | . . . . . . Construction Impeded . | . . . . . . Haulers Reinforced . | . . . . . . Active Scanning Responses . | . . . . . . Cargo Convoy Interrupts . | . . . . . . Stealth | -11 -10 -9 -9 -7 -7 --------- Run | Yrd Mat Mat Min Zio Dee Distress Signals 2 | . 2 . . . . Communications Jammed . | . . . . . . Distress Signals . | . . . . . . Times Spotted 56 | . 17 23 13 . 3 Peak Tracking Total 6 | . 6 5 4 . 3 Tactical Retreats 3 | . 2 . 1 . . Traps | -11 -10 -9 -9 -7 -7 ------- Run | Yrd Mat Mat Min Zio Dee Traps Triggered 5 | . 1 4 . . . Indirectly . | . . . . . . Trap Hack Attempts . | . . . . . . Triggered . | . . . . . . Disarmed . | . . . . . . Reprogrammed . | . . . . . . Reused . | . . . . . . Traps Extracted . | . . . . . . Installed . | . . . . . . Triggered . | . . . . . . Machines | -11 -10 -9 -9 -7 -7 ---------- Run | Yrd Mat Mat Min Zio Dee Machines Disabled 2 | . . . . . 2 Max in Single Turn 2 | . . . . . 2 Machines Repaired . | . . . . . . Machines Dismantled . | . . . . . . Machines Sabotaged . | . . . . . . Overloaded Fab Kills . | . . . . . . Hacking | -11 -10 -9 -9 -7 -7 --------- Run | Yrd Mat Mat Min Zio Dee Machines Accessed 7 | . 3 4 . . . Terminals 5 | . 2 3 . . . Fabricators . | . . . . . . Repair Stations . | . . . . . . Recycling Units 1 | . 1 . . . . Scanalyzers 1 | . . 1 . . . Garrison Access . | . . . . . . Total Hacks 20 | . 8 12 . . . Successful 10 | . 4 6 . . . Failed 10 | . 4 6 . . . Catastrophic 3 | . 2 1 . . . Database Lockouts . | . . . . . . Manual 20 | . 8 7 . 5 . Terminals 14 | . 6 8 . . . Fabricators . | . . . . . . Repair Stations . | . . . . . . Recycling Units 2 | . 2 . . . . Scanalyzers 4 | . . 4 . . . Garrison Access . | . . . . . . Terminal Hacks 4 | . 2 2 . . . Record 1 | . . 1 . . . Part Schematic 2 | . 1 1 . . . Terminal Index 1 | . 1 . . . . Fabricator Hacks . | . . . . . . Repair Station Hacks . | . . . . . . Recycling Unit Hacks . | . . . . . . Scanalyzer 4 | . . 4 . . . Insert Component 2 | . . 2 . . . Analyze 2 | . . 2 . . . Garrison Access Hacks . | . . . . . . Unauthorized Hacks 1 | . 1 . . . . Terminals . | . . . . . . Fabricators . | . . . . . . Repair Stations . | . . . . . . Recycling Units 1 | . 1 . . . . Reject 1 | . 1 . . . . Scanalyzers . | . . . . . . Garrison Access . | . . . . . . Data Cores Recovered . | . . . . . . Used . | . . . . . . Hacking Detections 7 | . 3 4 . . . Full Trace Events 2 | . . 2 . . . Feedback Events . | . . . . . . Feedback Blocked . | . . . . . . Robot Schematics Acquired . | . . . . . . Robots Built . | . . . . . . Authchips . | . . . . . . Time . | . . . . . . Total Robot Build Rating . | . . . . . . Part Schematics Acquired 4 | . 1 3 . . . Parts Built . | . . . . . . Authchips . | . . . . . . Time . | . . . . . . Total Part Build Rating . | . . . . . . Parts Repaired . | . . . . . . Time . | . . . . . . Parts Recycled . | . . . . . . Recycled Matter . | . . . . . . Retrieved Matter . | . . . . . . Retrieved Components . | . . . . . . Parts Scanalyzed 2 | . . 2 . . . Part Schematics Acquired 2 | . . 2 . . . Parts Damaged . | . . . . . . Bothacking | -11 -10 -9 -9 -7 -7 ------------ Run | Yrd Mat Mat Min Zio Dee Used RIF Installer . | . . . . . . Robots Hacked . | . . . . . . Non-combat . | . . . . . . Combat . | . . . . . . Robot Hacks Applied . | . . . . . . Relay Couplers Released . | . . . . . . Fabnet Peak Effective % . | . . . . . . Robots Rewired . | . . . . . . Allies Hacked . | . . . . . . Hacks Repelled . | . . . . . . Allies | -11 -10 -9 -9 -7 -7 -------- Run | Yrd Mat Mat Min Zio Dee Total Allies . | . . . . . . Largest Group . | . . . . . . Highest-Rated Group . | . . . . . . Highest-Rated Ally . | . . . . . . Total Orders . | . . . . . . Ally Attacks . | . . . . . . Total Damage . | . . . . . . Kills . | . . . . . . Allies Corrupted . | . . . . . . Allies Melted . | . . . . . . Intel | -11 -10 -9 -9 -7 -7 ------- Run | Yrd Mat Mat Min Zio Dee Robot Analysis Total . | . . . . . . Derelict Logs Recovered 1 | . . . 1 . . Drone Launches . | . . . . . . Drone Recoveries . | . . . . . . Exploration | -11 -10 -9 -9 -7 -7 ------------- Run | Yrd Mat Mat Min Zio Dee Turns Passed 4614 | 1683 497 1027 456 747 204 Spaces Moved 2438 | 635 295 511 241 604 152 Core 24 | 20 . 4 . . . Treads 432 | . . 429 3 . . Legs 1982 | 615 295 78 238 604 152 Wheels . | . . . . . . Hover . | . . . . . . Flight . | . . . . . . Fastest Speed 50 | 50 120 120 120 120 120 Average Speed 128 | 119 120 159 123 120 125 Slowest Speed 500 | 200 120 500 260 120 260 Overloaded Moves . | . . . . . . Propulsion Burnouts . | . . . . . . Robots Hopped . | . . . . . . Cave-ins Triggered . | . . . . . . Exploration Rate (%) 51 | 57 67 36 52 69 30 Regions Visited 5 Branch Regions 3 Pre-discovered Areas 1 | . . . . 1 . Known Exits Taken . | . . . . . . Unknown Exits Taken 5 | 1 1 1 1 1 . Scrap Searched 4 | . . . 2 2 . Spaces Dug . | . . . . . . Terrain Destroyed 74 | . . 20 21 . 33 Melee . | . . . . . . Projectile . | . . . . . . AOE 74 | . . 20 21 . 33 Terrain Rammed . | . . . . . . Walls Destroyed . | . . . . . . Machines Disabled . | . . . . . . Actions | -11 -10 -9 -9 -7 -7 --------- Run | Yrd Mat Mat Min Zio Dee Total 3669 | 1552 364 610 350 629 164 Wait 985 | 904 13 . 51 7 10 Move 2434 | 634 295 510 240 603 152 Hop . | . . . . . . Pick Up 21 | 3 6 5 1 6 . Fast Attach 26 | 8 . 10 5 3 . Attach 9 | . 1 4 3 . 1 Detach 7 | 1 . 3 3 . . Swap 17 | . 4 5 8 . . Drop 22 | . 3 1 8 10 . Fire 140 | 2 40 69 28 . 1 Melee . | . . . . . . Ram . | . . . . . . Kick 5 | . 2 . 3 . . Crush 3 | . . 3 . . . Escape Stasis . | . . . . . . Rewire . | . . . . . . Trap . | . . . . . . Miscellaneous . | . . . . . . Route ------- -11/Scrapyard -10/Materials (discovered 4 exits: *Mat x3 / [*Min]) -9/Materials (discovered 2 exits: *Mat / [*Min]) -9/Mines (discovered 2 exits: *Mat / *Zio) -7/Zion -7/Deep Caves History --------- Turn | Location | Event 20 | -11/Scrapyard | Discovered new exit (range 15) 1684 | -11/Scrapyard | Entered Materials 1685 | -10/Materials | Build established: Mutant 1812 | -10/Materials | Discovered new exit (range 13) 1836 | -10/Materials | Discovered new exit (range 7) 1942 | -10/Materials | Discovered new exit (range 4) 2133 | -10/Materials | Discovered new exit (range 15) 2181 | -10/Materials | Entered another Materials area 2181 | -9/Materials | Evolved 2 slots: Propulsion x2 2254 | -9/Materials | Discovered new exit (range 14) 2358 | -9/Materials | Lost 4 parts (3n1w) 2600 | -9/Materials | Discovered new exit (range 11) 2733 | -9/Materials | Build established: Scavenger-Mutant 3208 | -9/Materials | Entered Mines 3352 | -9/Mines | Identified exit to Materials 3507 | -9/Mines | Excavation squad dispatched 3507 | -9/Mines | A large section of the Mines collapsed 3539 | -9/Mines | Core integrity fell below 50% 3594 | -9/Mines | Found DCF Scrap (14 items) 3650 | -9/Mines | A Derelict revealed a hidden shortcut to a safe place 3664 | -9/Mines | Entered Zion 3727 | -7/Zion | System corruption cleaned by Quarantine Array 3778 | -7/Zion | Acquired unknown access codes intercepted by a Zionite 3790 | -7/Zion | Given the Hacking Drone Bay 3790 | -7/Zion | Found Prototype Device 3924 | -7/Zion | Found Prototype Special Weapon 3924 | -7/Zion | Identified RU-N14's Throwing Claymores 3936 | -7/Zion | Found RU-N14's Throwing Claymores 4278 | -7/Zion | Found Prototype Device 4388 | -7/Zion | Opened final containment barrier to the Deep Caves 4405 | -7/Zion | Discovered new exit (range 5) 4407 | -7/Zion | Saw the warning signs outside the Deep Caves entrance 4411 | -7/Zion | Entered Deep Caves 4597 | -7/Deep Caves | Z-Facility disabled 4599 | -7/Deep Caves | Attacked by Z-Imprinter 4610 | -7/Deep Caves | Core integrity fell below 20% 4615 | -7/Deep Caves | Destroyed by Z-Imprinter with Zionite Laser-M Last Messages --------------- 04589_ NEW_ZION: Z-Facility proximity alert. 04597_ Z-Power explodes. 04597_ NC-RYZ(o) destroyed. 04597_ Z-Facility disabled. 04597_ Aluminum Leg destroyed. 04597_ Destroyed Aluminum Leg. 04597_ Imp. Ion Engine destroyed. 04597_ Destroyed Imp. Ion Engine. 04597_ Aluminum Leg destroyed. 04597_ Destroyed Aluminum Leg. 04597_ Aluminum Leg destroyed. 04597_ Destroyed Aluminum Leg. 04597_ Destroyed Lgt. Ion Engine. 04597_ Destroyed Datajack. 04597_ BU-4MD(o) destroyed. Z-Imprinter: GET AWAY FROM HERE! I've worked too hard for our future just to have you ruin everything! 04602_ Aluminum Leg destroyed. 04612_ Spread Laser destroyed. Map ----- +----------------------------------------------------+ | ?????????????? #### | | ?????????????? ##### | | ????????????? ###### | | ????????????? ###?## | | ???????????? ###?## | | ???????????? ##?## | | ???????????? ##?### | | ???????????? ##?#### | | ???????????? ###??### | | ??????????? ###?### | | ????????? ##?### | | ??????? zI ##?## | | ??????? z ###?## #### | | ?????? ####?## ##### | | ?????? ####?## ##### | | ????? ###?## ### | | ????? ##?### ## | | ????? ##?### | | ???? ###??## | | ???? ###??## | | ??? ###??### # | | ??? ###?#### ## | | ??? ###??######## | | ??? ###??####### | | ??? ###????????? | | ???? @ ##????????? | | ???? ##????????? | | ????? ##????????? | | ????? ;;;;; ##????????? | | ????? ;;;; ;## #### ##????????? | | ?????? ;; ############# ###????????? | | ?????? """;; ################# #####????????? | | ??????#### #######??????????########?????????? | | ??????############???????????????#####???????????? | | | | | | | | | | | | | | | | | | | | | | | | | | | | | | | | | +----------------------------------------------------+ Best States ------------- Heat Dissipation 28 Energy Generation 14 Energy Capacity 265 Matter Stores 300 Matter Capacity 300 Sight Range 16 Terrain Scan Range 16 Terrain Scan Density 10 Resistance: KI 20 Resistance: TH 20 Resistance: EX 20 Resistance: EM 20 Resistance: I 20 Resistance: S 20 Resistance: P 20 Evasion (%) 55 Recoil Reduction 4 Offensive Hacking 10 Item Schematics ----------------- Structural Scanner | -10/Materials | Hacked Sml. Storage Unit | -9/Materials | Hacked Hrd. Light Armor Plating | -9/Materials | Scanalyzed Mni. Grenade Launcher | -9/Materials | Scanalyzed Robot Schematics ------------------ None Fabricated ------------ Nothing Alien Tech Used ----------------- None Achievements -------------- Signs Are For Wimps Challenges ------------ None Game ------ Seed SuspensionAssaultBay Manual? 0 Play Time 00:28:59 Cumulative 48.7 hours Start 2024.09.11 @ 17:25:30 End 2024.09.11 @ 17:54:12 Sessions 1 Manual Loads 0 Difficulty Adventurer Special Mode None Game No. 35 Rogue 0 Adventurer 35 Explorer 0 Win Type - Total 2 Types 2/0/0/0/0/0/0/0/0 Lore% 31 Gallery% 43 Achievement% 36 Wizard Run 0 Options --------- Layout 2 ASCII 0 Keyboard 1 Movement Numpad Keybinds 0 Fullscreen 2 Font 24/Tamsyn Map View 50x44 Zoom Use 0% Tactical HUD 1 Map Filters NONE Filters NONE Steam 1 RUN: 09cd6379-0da5-4509-b49a-b1d36bdfc696